bitfinex-derivatives/quotes_ETHF0:USTF0_20251203
["timestamp","ask_amount","ask_price","bid_price","bid_amount"]
[1764732040028,3.2078,3031.8,3031.7,2.3811]
[1764732040225,3.2078,3031.8,3031.7,3.38646754]
[1764732042229,4.4399,3031.8,3031.7,3.38646754]
[1764732043817,4.4399,3031.8,3031.7,3.55135754]
[1764732044627,5.654,3031.8,3031.7,3.55135754]
[1764732045828,5.654,3031.8,3031.7,2.36495754]
[1764732046224,3.2195,3031.5,3031.3,0.00311965]
[1764732046421,5.654,3031.4,3031.3,0.00311965]
[1764732046631,5.654,3031.4,3031.3,1.19781965]
[1764732047032,5.654,3031.4,3031.3,0.00311965]
[1764732047729,5.654,3031.4,3031.3,2.38421965]
[1764732047925,5.654,3031.4,3031.3,0.00311965]
[1764732050437,5.654,3031.4,3031.3,1.19781965]
[1764732050827,5.654,3031.4,3031.3,0.00311965]
[1764732053034,5.654,3031.4,3031.3,2.38421965]
[1764732053426,5.654,3031.4,3031.3,1.19781965]
[1764732053630,5.654,3031.4,3031.3,0.00311965]
[1764732054534,5.654,3031.4,3031.3,1.19781965]
[1764732054935,5.654,3031.4,3031.3,2.38421965]
[1764732055127,5.654,3031.4,3031.3,0.00311965]
[1764732056929,6.43431566,3031.4,3031.3,0.00311965]
[1764732057133,5.654,3031.4,3031.3,0.00311965]
[1764732061042,3.2078,3031.4,3031.3,2.54912965]
[1764732061344,0.7733,3032.0,3031.6,2.3811]
[1764732061345,3.2078,3031.7,3031.6,2.3811]
[1764732061645,2.4462,3031.4,3031.3,6.59736665]
[1764732061841,2.4462,3031.4,3031.3,3.21091965]
[1764732062235,2.4462,3031.4,3031.3,4.40561965]
[1764732063643,2.4462,3031.4,3031.3,3.21091965]
[1764732064044,1.2321,3031.4,3031.3,5.82491965]
[1764732064237,2.5048,3031.4,3031.3,5.82491965]
[1764732064437,5.7976,3031.7,3031.6,2.614]
[1764732064633,4.5249,3031.7,3031.6,2.614]
[1764732064834,5.7976,3031.7,3031.6,3.619347]
[1764732065240,4.5249,3031.7,3031.6,3.619347]
[1764732065444,5.7976,3031.7,3031.6,2.614]
[1764732066040,3.2078,3031.7,3031.6,2.614]
[1764732066345,4.5249,3031.7,3031.6,2.614]
[1764732066546,5.7976,3031.7,3031.6,2.614]
[1764732066742,5.7976,3031.7,3031.6,1.3708]
[1764732066938,5.7976,3031.7,3031.6,2.614]
[1764732069547,5.7976,3031.7,3031.6,1.3708]
[1764732070745,5.7976,3031.7,3031.6,2.614]
[1764732071155,2.5898,3031.6,3031.5,1.170247]
[1764732071346,2.5898,3031.6,3031.5,2.541047]
[1764732071541,2.5898,3031.6,3031.5,3.784247]
[1764732072543,5.7976,3032.2,3032.0,0.7822]
[1764732072743,5.7976,3032.2,3032.1,2.614]
[1764732072950,3.2078,3032.2,3032.1,2.614]
[1764732073445,4.5249,3032.2,3032.1,2.614]
[1764732074243,5.7976,3032.2,3032.1,2.614]
[1764732074444,5.7976,3032.2,3032.1,2.77887]
[1764732075039,5.7976,3032.2,3032.1,1.53567]
[1764732075240,2.5898,3032.1,3032.0,11.954]
[1764732075441,2.5898,3032.1,3032.0,13.3248]
[1764732075646,2.5898,3032.1,3032.0,14.568]
[1764732078660,1.3171,3032.1,3032.0,14.73287]
[1764732078851,2.5898,3032.1,3032.0,11.954]
[1764732079049,2.5898,3032.1,3032.0,14.73287]
[1764732079247,1.3171,3032.1,3032.0,15.51507]
[1764732079942,2.5898,3032.1,3032.0,14.73287]
[1764732081455,0.00279755,3032.3,3032.2,2.614]
[1764732081653,2.59259755,3032.3,3032.2,3.784207]
[1764732081952,2.59259755,3032.3,3032.2,1.170207]
[1764732082755,2.59259755,3032.3,3032.2,0.16486]
[1764732083859,2.59259755,3032.3,3032.2,1.53566]
[1764732084651,2.59259755,3032.3,3032.2,0.16486]
[1764732085055,0.00279755,3032.3,3032.2,3.784207]
[1764732085257,1.31989755,3032.3,3032.2,3.784207]
[1764732085454,2.59259755,3032.3,3032.2,3.784207]
[1764732085954,2.59259755,3032.3,3032.2,1.53566]
[1764732086160,2.59259755,3032.3,3032.2,2.77886]
[1764732087053,2.59259755,3032.3,3032.2,1.53566]
[1764732087256,2.59259755,3032.3,3032.2,0.16486]
[1764732088061,2.59259755,3032.3,3032.2,1.53566]
[1764732088263,2.59259755,3032.3,3032.2,0.16486]
[1764732096384,2.59259755,3032.3,3032.2,2.65536]
[1764732096578,2.59259755,3032.3,3032.2,1.53566]
[1764732096888,2.59259755,3032.3,3032.2,0.16486]
[1764732097587,2.59259755,3032.3,3032.2,1.31686]
[1764732097984,2.59259755,3032.3,3032.2,0.16486]
[1764732099575,2.59259755,3032.3,3032.2,3.441907]
[1764732100291,0.00279755,3032.3,3032.2,3.441907]
[1764732100788,1.20259755,3032.3,3032.2,3.441907]
[1764732101086,0.00279755,3032.3,3032.2,3.441907]
[1764732101685,1.20259755,3032.3,3032.2,3.441907]
[1764732101987,2.35439755,3032.3,3032.2,3.441907]
[1764732102184,1.20259755,3032.3,3032.2,3.441907]
[1764732102687,0.00279755,3032.3,3032.2,3.441907]
[1764732103088,1.20259755,3032.3,3032.2,3.441907]
[1764732103287,1.20259755,3032.3,3032.2,6.649707]
[1764732105781,0.00279755,3032.3,3032.2,6.649707]
[1764732105980,1.20259755,3032.3,3032.2,6.649707]
[1764732106889,0.00279755,3032.3,3032.2,6.649707]
[1764732108090,0.00279755,3032.3,3032.2,9.01416971]
[1764732108283,1.1998,3033.0,3032.9,3.441867]
[1764732108483,1.1998,3033.0,3032.9,3.44059553]
[1764732108787,5.5594,3033.4,3033.3,2.4365]
[1764732108988,1.1998,3033.4,3033.3,3.44057553]
[1764732109185,2.3516,3033.6,3033.5,2.43649]
[1764732109390,0.00335617,3033.6,3033.5,4.12316345]
[1764732109586,3.2078,3034.3,3034.2,2.2717]
[1764732109587,5.5594,3034.3,3034.2,2.2717]
[1764732109788,6.33947749,3034.3,3034.2,3.27577553]
[1764732109982,6.33947749,3034.3,3034.2,2.15607553]
[1764732110187,5.5594,3034.3,3034.2,2.15607553]
[1764732110489,2.35432478,3034.3,3034.2,1.00407553]
[1764732114002,2.3516,3034.1,3034.0,0.16476]
[1764732116097,3.0466,3034.0,3033.9,12.056]
[1764732116902,0.695,3036.5,3034.5,0.6799]
[1764732117109,0.695,3036.0,3035.8,1.00407553]
[1764732117293,1.1998,3035.9,3035.7,1.16874553]
[1764732117494,1.1998,3035.9,3035.8,5.176]
[1764732117898,1.20231524,3035.9,3035.8,5.34353696]
[1764732118100,0.00251524,3035.9,3035.8,5.34353696]
[1764732118398,0.00251524,3035.9,3035.8,8.55133696]
[1764732120505,0.00251524,3035.9,3035.8,10.05434695]
[1764732121206,1.20231524,3035.9,3035.8,8.55133696]
[1764732121412,2.35411524,3035.9,3035.8,8.55133696]
[1764732122399,1.20231524,3035.9,3035.8,8.55133696]
[1764732122906,0.00251524,3035.9,3035.8,8.55133696]
[1764732123605,1e-08,3036.2,3036.1,0.16465]
[1764732123813,1e-08,3036.2,3036.1,1.66765999]
[1764732124610,0.0024809,3036.2,3036.1,1.66765999]
[1764732126200,2.6013809,3036.2,3036.1,1.66765999]
[1764732126912,2.6013809,3036.2,3036.1,1.92963744]
[1764732127112,2.6013809,3036.2,3036.1,1.66765999]
[1764732127423,2.6013809,3036.2,3036.1,0.16465]
[1764732128114,2.5989,3035.9,3035.8,3.21066696]
[1764732130109,2.174,3036.0,3035.8,3.37533696]
[1764732130411,2.5989,3035.9,3035.8,3.37533696]
[1764732131416,1.4616,3035.9,3035.8,3.37533696]
[1764732132006,2.5989,3035.9,3035.8,3.37533696]
[1764732134516,2.5989,3035.9,3035.8,3.21066696]
[1764732134711,2.5989,3035.6,3035.5,0.00494412]
[1764732135716,2.5989,3035.6,3035.5,0.00867014]
[1764732135910,2.5989,3035.6,3035.5,0.00099263]
[1764732138006,2.5989,3035.4,3035.3,3.2078]
[1764732139015,2.5989,3035.4,3035.3,0.0041442]
[1764732140917,3.3113,3035.0,3034.9,3.2078]
[1764732141819,3.3113,3035.0,3034.9,3.21192944]
[1764732142819,3.9202,3035.5,3034.9,11.87612944]
[1764732143025,2.5989,3035.1,3035.0,1.62641]
[1764732143225,2.5989,3035.1,3035.0,0.16471]
[1764732144526,3.9202,3035.5,3034.9,0.00412944]
[1764732144527,3.3113,3035.0,3034.9,0.00412944]
[1764732146831,4.31437751,3035.0,3034.9,0.00412944]
[1764732147031,3.3113,3035.0,3034.9,0.00412944]
[1764732147627,2.5989,3034.7,3034.6,0.00494412]
[1764732148630,2.5989,3034.7,3034.6,0.00820089]
[1764732148829,2.5989,3034.7,3034.6,8.9e-07]
[1764732155038,1.4616,3034.7,3034.6,2.96970089]
[1764732155343,3.7261,3035.0,3034.9,1.5562]
[1764732155536,3.7261,3035.0,3034.9,3.048]
[1764732155733,2.3093,3035.0,3034.9,3.048]
[1764732155939,0.7124,3035.0,3034.9,3.048]
[1764732156140,2.2472,3035.0,3034.9,3.21272]
[1764732156440,3.0274,3035.1,3035.0,0.16471]
[1764732157938,3.0274,3034.9,3034.6,8.25000089]
[1764732158142,0.8607,3035.0,3034.6,11.29840089]
[1764732158143,1.5348,3034.7,3034.6,11.29840089]
[1764732158346,3.0274,3034.7,3034.6,11.29840089]
[1764732158844,0.8607,3035.0,3034.6,8.9e-07]
[1764732160050,3.8881,3035.0,3034.9,1.5566]
[1764732160945,3.8881,3035.0,3034.6,8.9e-07]
[1764732161349,0.8607,3035.0,3034.6,8.9e-07]
[1764732163553,0.8607,3035.0,3034.3,0.00494412]
[1764732163554,3.2078,3034.9,3034.3,0.00494412]
[1764732164852,1.53748657,3033.6,3033.5,6.25878708]
[1764732165152,3.03008657,3033.6,3033.5,7.13728776]
[1764732165457,3.03008657,3033.6,3033.5,3.21038708]
[1764732166953,3.03008657,3033.6,3033.5,6.25878708]
[1764732167659,3.03008657,3033.6,3033.5,4.76698708]
[1764732167860,3.03008657,3033.6,3033.5,6.25878708]
[1764732168057,3.03008657,3033.6,3033.5,4.76698708]
[1764732168761,3.03008657,3033.6,3033.5,3.21038708]
[1764732169459,3.03008657,3033.6,3033.5,4.76698708]
[1764732170556,3.03008657,3033.6,3033.5,3.21038708]
[1764732172169,3.03008657,3033.6,3033.5,0.00258708]
[1764732173364,3.03008657,3033.6,3033.5,3.05098708]
[1764732173561,3.03008657,3033.6,3033.5,1.55918708]
[1764732173761,3.03008657,3033.6,3033.5,0.00258708]
[1764732175265,3.03008657,3033.6,3033.5,3.05098708]
[1764732176963,3.03008657,3033.6,3033.5,1.55918708]
[1764732177366,3.03008657,3033.6,3033.5,3.05098708]
[1764732177864,3.03008657,3033.6,3033.5,0.00258708]
[1764732180062,3.0274,3032.4,3032.3,3.0484]
[1764732180256,3.0274,3032.4,3032.3,1.5566]
[1764732180461,1.5348,3032.4,3032.3,3.0484]
[1764732180656,3.0274,3032.4,3032.3,3.0484]
[1764732181061,3.0274,3032.4,3032.3,0.00234024]
[1764732181765,3.0274,3032.1,3032.0,0.00330733]
[1764732181966,6.2352,3032.1,3032.0,0.00330733]
[1764732182767,6.2352,3032.1,3032.0,0.00673128]
[1764732190874,6.2352,3032.1,3032.0,1.61033128]
[1764732191077,6.2352,3032.1,3032.0,0.00673128]
[1764732192665,4.7426,3032.1,3032.0,3.94843128]
[1764732192871,3.2078,3032.1,3032.0,3.94843128]
[1764732193068,6.195,3032.5,3032.4,3.0341]
[1764732193368,3.2078,3032.5,3032.4,3.19895]
[1764732193569,4.7323,3032.5,3032.4,3.19895]
[1764732193768,3.2078,3032.5,3032.4,3.19895]
[1764732195879,6.195,3032.5,3032.4,3.19895]
[1764732196077,4.7323,3032.5,3032.4,3.19895]
[1764732196478,6.195,3032.5,3032.4,3.0341]
[1764732196975,4.7323,3032.5,3032.4,3.0341]
[1764732197680,6.195,3032.5,3032.4,3.0341]
[1764732198081,4.7323,3032.5,3032.4,3.0341]
[1764732198778,7.1058,3032.5,3032.4,1.6036]
[1764732198978,4.7323,3032.5,3032.4,3.0341]
[1764732199182,3.2078,3032.5,3032.4,3.0341]
[1764732200781,0.00494412,3032.7,3032.6,3.0341]
[1764732202683,2.9872,3032.3,3032.2,6.8021]
[1764732203688,2.9872,3032.1,3032.0,1.61033128]
[1764732204483,2.9872,3032.1,3032.0,0.00673128]
[1764732205885,2.9872,3031.5,3031.4,6.4068]
[1764732206077,1.5245,3031.5,3031.4,6.4068]
[1764732206780,1.5245,3031.5,3031.4,6.41026339]
[1764732207185,2.9872,3031.5,3031.4,4.97976339]
[1764732207482,2.9872,3031.5,3031.4,6.41026339]
[1764732210291,1.5245,3031.5,3031.4,6.41026339]
[1764732210494,6.195,3031.9,3031.8,1.6036]
[1764732210687,3.2078,3031.9,3031.8,3.0341]
[1764732210987,3.2078,3031.9,3031.8,16.1151]
[1764732211186,4.7323,3031.9,3031.8,16.1151]
[1764732213794,6.195,3031.9,3031.8,14.6846]
[1764732214092,6.195,3031.9,3031.8,16.2561]
[1764732216400,4.7323,3031.9,3031.8,16.2561]
[1764732216589,6.048,3031.9,3031.8,16.2561]
[1764732217394,4.7323,3031.9,3031.8,16.2561]
[1764732217596,2.6968,3031.8,3031.7,1.56369]
[1764732217792,2.6968,3031.8,3031.7,16.04079]
[1764732217997,2.6968,3031.8,3031.7,0.16489]
[1764732218206,2.6968,3031.8,3031.7,1.56369]
[1764732218501,2.6968,3031.8,3031.7,2.95879]
[1764732218690,4.5889,3031.9,3031.8,2.7939]
[1764732219293,5.9046,3031.9,3031.8,2.7939]
[1764732220597,4.5889,3031.9,3031.8,2.7939]
[1764732221206,5.9046,3031.9,3031.8,2.7939]
[1764732222899,3.2078,3031.9,3031.8,2.7939]
[1764732223301,4.5889,3031.9,3031.8,2.7939]
[1764732223801,5.9046,3031.9,3031.8,2.7939]
[1764732224501,3.2078,3031.9,3031.8,2.7939]
[1764732224693,4.5889,3031.9,3031.8,2.7939]
[1764732224894,3.2078,3031.9,3031.8,2.7939]
[1764732225103,5.9046,3032.3,3032.2,2.7939]
[1764732225296,5.9046,3032.3,3031.7,0.16489]
[1764732225500,2.6968,3031.8,3031.7,1.56369]
[1764732225700,2.6968,3031.8,3031.7,2.95879]
[1764732226204,1.3811,3031.8,3031.7,2.95879]
[1764732226597,5.9046,3032.3,3032.2,1.3988]
[1764732226802,3.2078,3032.3,3032.2,2.7939]
[1764732227301,3.2078,3032.3,3032.2,2.95876]
[1764732227495,4.5889,3032.3,3032.2,2.95876]
[1764732227799,5.9046,3032.3,3032.2,2.95876]
[1764732228097,4.5889,3032.3,3032.2,2.95876]
[1764732228997,3.2078,3032.3,3032.2,2.95876]
[1764732229589,5.9046,3032.3,3032.2,1.56366]
[1764732229997,5.9046,3032.3,3032.2,2.95876]
[1764732230587,4.5889,3032.3,3032.2,1.56366]
[1764732230795,4.5889,3032.3,3032.2,2.95876]
[1764732231197,5.9046,3032.3,3032.2,2.95876]
[1764732233401,5.9046,3032.3,3032.2,1.56366]
[1764732233602,5.9046,3032.3,3032.2,0.16486]
[1764732233804,2.6968,3031.9,3031.8,14.79530068]
[1764732234101,2.6968,3031.9,3031.8,13.8238]
[1764732234296,2.6968,3031.9,3031.8,15.2189]
[1764732234799,2.6968,3031.9,3031.8,13.8238]
[1764732234992,2.6968,3031.9,3031.8,16.22395708]
[1764732236303,5.9046,3031.9,3031.8,16.22395708]
[1764732241312,5.9046,3031.9,3031.8,15.2189]
[1764732241507,5.9046,3031.9,3031.8,13.8238]
[1764732241813,5.9046,3031.9,3031.8,15.2189]
[1764732242011,4.5889,3031.9,3031.8,15.2189]
[1764732242514,5.9046,3031.9,3031.8,15.2189]
[1764732243110,4.5889,3031.9,3031.8,16.22395708]
[1764732243313,5.9358,3031.9,3031.8,16.22395708]
[1764732243724,5.9358,3031.9,3031.8,15.2189]
[1764732244104,3.2078,3031.9,3031.8,1.2447]
[1764732244309,2.5894,3031.8,3031.7,9.3717]
[1764732244702,2.5894,3031.8,3031.7,8.127]
[1764732244909,2.5894,3031.8,3031.7,9.3717]
[1764732245409,2.5894,3031.8,3031.7,10.7731]
[1764732247707,3.2078,3031.9,3031.8,2.6461]
[1764732249215,0.7327,3032.5,3032.2,2.6461]
[1764732249216,5.7972,3032.3,3032.2,2.6461]
[1764732250214,5.7972,3032.3,3032.2,1.2447]
[1764732250512,2.5894,3032.1,3032.0,4.43535708]
[1764732251615,2.5894,3032.1,3032.0,2.6461]
[1764732252017,2.5894,3032.1,3032.0,1.2447]
[1764732253017,2.5894,3032.1,3032.0,2.6461]
[1764732255413,1.2425,3032.1,3032.0,3.4303]
[1764732255617,5.7972,3032.3,3032.2,2.6461]
[1764732256014,6.54623197,3032.3,3032.2,2.6461]
[1764732256218,3.2078,3032.3,3032.2,2.81096]
[1764732256416,4.4503,3032.3,3032.2,2.81096]
[1764732256918,3.2078,3032.3,3032.2,2.81096]
[1764732258416,4.4503,3032.3,3032.2,2.81096]
[1764732258735,5.7972,3032.3,3032.2,2.81096]
[1764732259224,4.4503,3032.3,3032.2,2.81096]
[1764732259422,3.21274412,3032.7,3032.6,2.6461]
[1764732259618,4.45524412,3032.7,3032.6,2.6461]
[1764732259924,5.80214412,3032.7,3032.6,2.6461]
[1764732260218,3.21274412,3032.7,3032.6,2.6461]
[1764732261325,3.21274412,3032.7,3032.6,2.81094]
[1764732263512,3.2078,3033.1,3033.0,3.4303]
[1764732263919,4.4503,3033.1,3033.0,3.4303]
[1764732264126,5.7972,3033.1,3033.0,3.4303]
[1764732265322,5.7972,3033.1,3033.0,2.6461]
[1764732265522,2.5894,3032.9,3032.8,7.9077]
[1764732266031,2.5894,3032.9,3032.8,9.3091]
[1764732266236,1.2425,3032.9,3032.8,9.3091]
[1764732267331,2.5894,3032.9,3032.8,9.3091]
[1764732270827,2.5894,3032.9,3032.8,6.663]
[1764732271128,2.5894,3032.9,3032.8,7.9077]
[1764732271318,2.5894,3032.9,3032.8,9.3091]
[1764732273736,2.5894,3032.9,3032.8,9.1979]
[1764732277430,2.5894,3032.9,3032.8,7.9077]
[1764732278239,2.5894,3032.9,3032.8,9.0763]
[1764732278736,2.5894,3032.9,3032.8,7.9077]
[1764732281141,2.5894,3032.9,3032.8,9.0763]
[1764732281534,3.2078,3033.0,3032.9,2.2797]
[1764732282647,4.3049,3033.0,3032.9,2.2797]
[1764732284238,5.4312,3033.0,3032.9,2.2797]
[1764732284434,4.3049,3033.0,3032.9,2.2797]
[1764732285747,6.073,3033.0,3032.9,1.1111]
[1764732285941,2.2234,3032.9,3032.8,8.9427]
[1764732287347,2.2234,3032.9,3032.8,7.7741]
[1764732287546,2.2234,3032.9,3032.8,8.9427]
[1764732288443,2.2234,3032.8,3032.7,0.00494411]
[1764732288966,2.2234,3032.2,3032.1,3.48094716]
[1764732289163,2.2234,3032.2,3032.1,1.1111]
[1764732289472,2.2234,3032.2,3032.1,2.2797]
[1764732290160,3.2078,3032.3,3032.1,4.64954716]
[1764732290357,3.2078,3032.3,3032.2,2.2797]
[1764732290965,5.4312,3032.3,3032.2,2.2797]
[1764732291157,2.2234,3032.1,3032.0,5.65460424]
[1764732291358,2.2234,3032.1,3032.0,3.28475708]
[1764732291759,2.2234,3032.1,3032.0,3.93645708]
[1764732292267,1.0971,3032.1,3032.0,3.93645708]
[1764732292457,1.0971,3032.1,3032.0,2.9314]
[1764732293672,2.2234,3031.5,3031.4,2.28316339]
[1764732294360,1.0971,3031.5,3031.4,2.28316339]
[1764732294561,5.4312,3031.7,3031.6,2.2797]
[1764732295162,2.9136,3031.5,3031.4,1.11456339]
[1764732295367,2.9136,3031.5,3031.4,0.00346339]
[1764732296370,2.2234,3031.5,3031.4,2.28316339]
[1764732299462,2.9136,3031.5,3031.4,0.00346339]
[1764732300170,2.2234,3031.2,3031.1,1.27602]
[1764732300363,2.2234,3031.2,3031.1,2.44462]
[1764732300758,2.2234,3031.2,3031.1,1.1111]
[1764732300963,2.22650781,3031.2,3031.1,1.1148739]
[1764732301971,0.00310781,3031.2,3031.1,2.2834739]
[1764732302475,0.00310781,3031.2,3031.1,2.4483939]
[1764732303374,2.26590781,3031.2,3031.1,2.4483939]
[1764732304672,1.10020781,3031.2,3031.1,2.4483939]
[1764732305271,0.00310781,3031.2,3031.1,2.4483939]
[1764732306477,1.00060781,3031.2,3031.1,2.4483939]
[1764732306674,4.20840781,3031.2,3031.1,2.4483939]
[1764732307178,3.21090781,3031.2,3031.1,2.4483939]
[1764732308278,0.00310781,3031.2,3031.1,2.4483939]
[1764732308976,3.2078,3031.7,3031.6,2.31969]
[1764732309175,3.2078,3031.7,3031.6,3.32455959]
[1764732309376,4.2053,3031.7,3031.6,3.32455959]
[1764732309781,5.371,3031.7,3031.6,2.31969]
[1764732310178,5.37524149,3031.7,3031.6,2.31969]
[1764732311084,4.20954149,3031.7,3031.6,2.31969]
[1764732311583,5.37524149,3031.7,3031.6,2.31969]
[1764732311982,5.37524149,3031.7,3031.6,14.99669]
[1764732312182,4.20954149,3031.7,3031.6,14.99669]
[1764732312481,5.37524149,3031.7,3031.6,16.00155959]
[1764732312983,4.20954149,3031.7,3031.6,16.00155959]
[1764732313585,5.37524149,3031.7,3031.6,16.00155959]
[1764732313879,5.37524149,3031.7,3031.6,14.99669]
[1764732314079,2.1632,3031.4,3031.3,2.1548]
[1764732314278,2.1632,3031.4,3031.3,15.2278]
[1764732314675,0.9975,3031.4,3031.3,15.2278]
[1764732315182,2.1632,3031.4,3031.3,15.2278]
[1764732315786,0.9975,3031.4,3031.3,15.2278]
[1764732316689,3.21204149,3031.7,3031.3,15.2278]
[1764732316690,5.37524149,3031.7,3031.6,2.1548]
[1764732316986,3.21204149,3031.7,3031.6,3.15966959]
[1764732317190,5.37524149,3031.7,3031.6,2.31969]
[1764732317386,5.37524149,3031.7,3031.6,0.16489]
[1764732317679,5.37524149,3031.7,3031.6,1.18639]
[1764732318381,5.37524149,3031.7,3031.6,2.31969]
[1764732319281,5.37524149,3031.7,3031.6,1.18639]
[1764732324683,5.37524149,3031.7,3031.6,2.31969]
[1764732324884,4.20954149,3031.7,3031.6,2.31969]
[1764732325196,5.37524149,3031.7,3031.6,2.31969]
[1764732325883,4.20954149,3031.7,3031.6,2.31969]
[1764732326288,4.20954149,3031.7,3031.2,2.36984716]
[1764732326289,5.37524149,3031.7,3031.2,2.36984716]
[1764732326590,4.2053,3031.3,3031.2,2.1548]
[1764732326790,5.37524149,3031.7,3031.6,1.0215]
[1764732327091,6.12672815,3031.7,3031.6,1.0215]
[1764732327887,6.12702934,3031.7,3031.6,1.0215]
[1764732328893,6.12702934,3031.7,3031.2,1.16978959]
[1764732329086,0.9975,3031.3,3031.2,3.32458959]
[1764732329888,5.37524149,3031.7,3031.6,1.0215]
[1764732330193,6.12709189,3031.7,3031.2,1.16978959]
[1764732330387,5.37524149,3031.7,3031.6,2.1548]
[1764732330592,6.12709157,3031.7,3031.6,2.1548]
[1764732330787,5.37524149,3031.7,3031.6,2.1548]
[1764732331898,5.37524149,3031.7,3031.6,1.0215]
[1764732332096,5.37524149,3031.7,3031.6,2.1548]
[1764732332296,6.12717455,3031.7,3031.6,2.1548]
[1764732332498,6.12717455,3031.7,3031.6,1.0215]
[1764732332697,6.12717455,3031.7,3031.6,2.1548]
[1764732333688,2.91937455,3031.7,3031.6,2.1548]
[1764732333889,6.12717455,3031.7,3031.6,2.1548]
[1764732334299,3.21204149,3031.7,3031.6,2.31969]
[1764732334499,3.20363399,3031.7,3031.6,2.31969]
[1764732334896,3.15338711,3031.7,3031.6,2.31969]
[1764732335095,0.00494412,3031.8,3031.7,2.14089]
[1764732335295,0.00494412,3031.8,3031.7,15.21189]
[1764732335598,3.2078,3032.2,3032.1,2.00667]
[1764732335801,4.16563465,3032.2,3032.1,3.01153959]
[1764732336101,3.21043465,3032.2,3032.1,3.01153959]
[1764732337995,0.00263465,3032.2,3032.1,3.01153959]
[1764732338200,3.2078,3032.7,3032.6,1.8418]
[1764732338401,3.2078,3032.7,3032.6,15.91666959]
[1764732338904,4.163,3032.7,3032.6,15.91666959]
[1764732339104,4.16664224,3032.7,3032.6,15.91666959]
[1764732339706,0.00494412,3033.0,3032.6,29.5291133]
[1764732339901,2.42078822,3034.0,3032.6,29.5291133]
[1764732339902,3.2078,3033.9,3033.0,0.72122]
[1764732340199,0.9552,3033.6,3033.5,3.40306959]
[1764732340505,0.9552,3033.6,3033.5,16.47206959]
[1764732340892,0.95816965,3033.6,3033.5,16.47543264]
[1764732343102,1.85376965,3033.6,3033.5,14.00806305]
[1764732344103,1.85376965,3033.6,3033.5,13.07036305]
[1764732344302,1.85376965,3033.6,3033.5,0.94106305]
[1764732344504,1.85376965,3033.6,3033.5,5.38206305]
[1764732345202,1.85376965,3033.6,3033.5,6.28616305]
[1764732349010,1.85376965,3033.6,3033.5,5.38206305]
[1764732349310,1.85376965,3033.6,3033.5,6.28616305]
[1764732350003,0.00296965,3033.6,3033.5,7.84743264]
[1764732350208,0.00296965,3033.6,3033.5,8.01222264]
[1764732350710,3.12993798,3033.9,3033.8,3.01143959]
[1764732350902,3.12993798,3033.9,3033.8,2.00657]
[1764732351703,3.13306187,3033.9,3033.8,2.00657]
[1764732352101,0.00806801,3033.9,3033.8,5.21437]
[1764732352307,4.7496,3034.5,3034.4,0.2468]
[1764732352518,4.7496,3034.5,3034.4,1.24993186]
[1764732353317,1.8508,3034.3,3034.2,0.28815]
[1764732353710,1.8508,3034.3,3034.2,6.82255]
[1764732354109,5.64860363,3034.5,3034.4,0.1234]
[1764732354310,4.75300363,3034.5,3034.4,1.24993186]
[1764732354509,5.64860363,3034.5,3034.4,1.24993186]
[1764732355111,5.64860363,3034.5,3034.4,1.12653186]
[1764732355314,5.64860363,3034.5,3034.4,1.00313186]
[1764732355616,5.64860363,3034.5,3034.4,1.24993186]
[1764732356112,5.64860363,3034.5,3034.4,1.12653186]
[1764732356314,4.75300363,3034.5,3034.4,1.24993186]
[1764732356513,5.64860363,3034.5,3034.4,1.24993186]
[1764732357009,5.64860363,3034.5,3034.2,6.411]
[1764732357215,0.9552,3034.3,3034.2,6.6578]
[1764732358011,2.44080363,3034.5,3034.4,0.2468]
[1764732358211,2.44080363,3034.5,3034.4,1.12653186]
[1764732359321,2.44080363,3034.5,3034.4,1.00313186]
[1764732359518,2.44080363,3034.5,3034.4,1.12653186]
[1764732359712,1.54520363,3034.5,3034.4,1.24993186]
[1764732359911,2.44080363,3034.5,3034.4,1.24993186]
[1764732360818,1.54520363,3034.5,3034.4,1.41467186]
[1764732361116,0.00340363,3034.5,3034.4,1.41467186]
[1764732362018,0.59000363,3034.5,3034.4,1.41467186]
[1764732363115,1.54520363,3034.5,3034.4,1.41467186]
[1764732363517,0.59000363,3034.5,3034.4,1.41467186]
[1764732363815,0.00340363,3034.5,3034.4,1.41467186]
[1764732364217,0.00340363,3034.5,3034.4,2.41780372]
[1764732364519,0.00494412,3034.8,3034.7,1.03513]
[1764732364714,0.00494412,3034.8,3034.7,5.24606186]
[1764732365120,1.04854412,3034.8,3034.7,5.24606186]
[1764732365514,1.05152263,3034.8,3034.7,5.24606186]
[1764732365714,0.00792263,3034.8,3034.7,5.24606186]
[1764732367124,1.96642263,3034.8,3034.7,4.81086186]
[1764732367319,1.96642263,3034.8,3034.7,14.36186186]
[1764732367525,1.96642263,3034.8,3034.7,5.24606186]
[1764732367817,1.96642263,3034.8,3034.7,11.75206186]
[1764732368620,1.96642263,3034.8,3034.7,10.88166186]
[1764732369127,1.96642263,3034.8,3034.7,11.31686186]
[1764732369329,1.96642263,3034.8,3034.7,11.75206186]
[1764732369622,1.96642263,3034.8,3034.7,17.86686186]
[1764732370726,1.96642263,3034.8,3034.7,16.2638]
[1764732372018,1.9585,3034.4,3034.3,4.81088186]
[1764732372225,1.9585,3034.4,3034.3,17.86588186]
[1764732372420,1.9585,3034.4,3034.3,16.2628]
[1764732372629,2.5375,3034.0,3033.9,17.1332]
[1764732372819,2.5375,3034.0,3033.9,18.13633186]
[1764732373827,0.579,3034.5,3034.4,0.4352]
[1764732374031,2.5375,3034.5,3034.4,1.00313186]
[1764732375729,2.5375,3034.5,3033.9,16.2628]
[1764732375730,1.9585,3034.2,3034.1,1.43833186]
[1764732375934,1.9585,3034.2,3034.1,1.00313186]
[1764732376238,2.5375,3034.0,3033.9,16.698]
[1764732376429,2.5375,3034.0,3033.9,3.2078]
[1764732376734,1.9585,3033.6,3033.5,5.08469491]
[1764732376935,1.9585,3033.6,3033.5,18.13869491]
[1764732377227,1.0436,3033.6,3033.5,18.13869491]